lending/lending_fUSD_20240401
["ID","MTS","AMOUNT","RATE_DAILY","PERIOD"]
[321183862,1711951858089,-1000.0,0.00058195,2]
[321183863,1711951858098,-1000.0,0.00058195,2]
[321183864,1711951858108,-1000.0,0.00058195,2]
[321183865,1711951858118,-1000.0,0.00058195,2]
[321183866,1711951858128,-1000.0,0.00058195,2]
[321183867,1711951858138,-1000.0,0.00058195,2]
[321183868,1711951858148,-1000.0,0.00058195,2]
[321183869,1711951858158,-1000.0,0.00058195,2]
[321183870,1711951858168,-1000.0,0.00058195,2]
[321183871,1711951858178,-1000.0,0.00058195,2]
[321183872,1711951858188,-1000.0,0.00058195,2]
[321183873,1711951858198,-1000.0,0.00058195,2]
[321183874,1711951858208,-1000.0,0.00058195,2]
[321183875,1711951858218,-1000.0,0.00058195,2]
[321183876,1711951858228,-1000.0,0.00058195,2]
[321183877,1711951858239,-1000.0,0.00058195,2]
[321183878,1711951858249,-1000.0,0.00058195,2]
[321183879,1711951858259,-1000.0,0.00058195,2]
[321183880,1711951858268,-1000.0,0.00058195,2]
[321183881,1711951858278,-1000.0,0.00058195,2]
[321183882,1711951858288,-1000.0,0.00058195,2]
[321183883,1711951858298,-545.8084,0.00058195,2]
[321183884,1711951858311,-500.0,0.00058195,2]
[321183885,1711951858324,-500.0,0.00058195,2]
[321183886,1711951858333,-500.0,0.00058195,2]
[321183887,1711951858343,-523.7315,0.00058195,2]
[321183888,1711951858352,-1500.0,0.000582,120]
[321183889,1711951858362,-150.0,0.000582,13]
[321183890,1711951858371,-500.0,0.00058268,30]
[321183891,1711951858381,-500.0,0.00058268,120]
[321183892,1711951858391,-532.09,0.00058268,120]
[321183893,1711951858534,-500.0,0.00058268,120]
[321183894,1711951858544,-500.0,0.00058268,120]
[321183895,1711951858554,-500.0,0.00058268,120]
[321183896,1711951858563,-500.0,0.00058268,120]
[321183897,1711951858576,-500.0,0.00058268,120]
[321183898,1711951858586,-500.0,0.00058268,120]
[321183899,1711951858595,-500.0,0.00058268,120]
[321183900,1711951858605,-500.0,0.00058268,120]
[321183901,1711951858615,-500.0,0.00058268,120]
[321183902,1711951858624,-500.0,0.00058268,120]
[321183903,1711951858634,-500.0,0.00058268,120]
[321183904,1711951858644,-500.0,0.00058268,120]
[321183905,1711951858654,-500.0,0.00058268,120]
[321183906,1711951858663,-500.0,0.00058268,120]
[321183907,1711951858673,-648.28078983,0.00058273,120]
[321183908,1711951858683,-500.0,0.00058273,120]
[321183909,1711951858692,-590.57296392,0.00058273,120]
[321183910,1711951858701,-500.0,0.00058273,120]
[321183911,1711951858711,-500.0,0.00058273,120]
[321183912,1711951858721,-500.0,0.00058273,120]
[321183913,1711951858731,-500.0,0.00058273,120]
[321183914,1711951858740,-528.28,0.00058273,120]
[321183915,1711951858750,-1130.82,0.00058273,120]
[321183916,1711951858759,-500.89003801,0.00058273,120]
[321183917,1711951858769,-500.0,0.00058273,120]
[321183918,1711951858779,-23219.953927,0.000583,2]
[321183919,1711951858789,-393.37,0.00058356,120]
[321183920,1711951858798,-500.0,0.00058356,120]
[321183921,1711951858808,-623.7,0.00058356,120]
[321183922,1711951858817,-775.42,0.00058356,120]
[321183923,1711951858832,-768.77,0.00058356,120]
[321183924,1711951858841,-1125.53,0.00058356,120]
[321183925,1711951858851,-704.11,0.00058356,120]
[321183926,1711951858860,-3905.3,0.00058356,120]
[321183927,1711951858870,-1527.15,0.00058356,120]
[321183928,1711951858879,-500.0,0.00058356,120]
[321183929,1711951858889,-2316.33,0.00058356,120]
[321183930,1711951858900,-379.20002868,0.00058356,120]
[321183931,1711951858909,-844.99,0.00058356,120]
[321183932,1711951858919,-500.0,0.00058356,120]
[321183933,1711951858929,-885.7,0.00058356,120]
[321183934,1711951858938,-500.0,0.00058356,120]
[321183935,1711951858948,-1295.33,0.00058356,120]
[321183936,1711951858957,-2937.94,0.00058356,120]
[321183937,1711951858967,-500.0,0.00058356,120]
[321183938,1711951858976,-1995.86,0.00058356,120]
[321183939,1711951858986,-598.43,0.00058356,120]
[321183940,1711951858996,-1598.44,0.00058356,120]
[321183941,1711951859005,-500.0,0.00058356,120]
[321183942,1711951859014,-1620.39,0.00058356,120]
[321183943,1711951859024,-1182.42,0.00058356,120]
[321183944,1711951859034,-500.0,0.00058356,120]
[321183945,1711951859043,-500.0,0.00058356,120]
[321183946,1711951859053,-1108.51,0.00058356,120]
[321183947,1711951859063,-2166.26,0.00058356,120]
[321183948,1711951859075,-500.0,0.00058356,120]
[321183949,1711951859085,-500.0,0.00058356,120]
[321183950,1711951859096,-760.91,0.00058356,120]
[321183951,1711951859105,-500.0,0.00058356,120]
[321183952,1711951859115,-1208.42,0.00058356,120]
[321183953,1711951859125,-500.0,0.00058356,120]
[321183954,1711951859135,-2832.74,0.00058356,120]
[321183955,1711951859145,-651.14,0.00058356,120]
[321183956,1711951859156,-734.88,0.00058356,120]
[321183957,1711951859166,-1257.16,0.00058356,120]
[321183958,1711951859176,-741.06,0.00058356,120]
[321183959,1711951859185,-1699.92,0.00058356,120]
[321183960,1711951859195,-1993.44,0.00058356,120]
[321183961,1711951859206,-500.0,0.00058356,120]
[321183962,1711951859215,-3642.1,0.00058356,120]
[321183963,1711951859225,-7257.52,0.00058356,120]
[321183964,1711951859235,-500.0,0.00058356,120]
[321183965,1711951859245,-902.57,0.00058356,21]
[321183966,1711951859256,-382.12,0.00058356,120]
[321183967,1711951859265,-2173.88,0.00058356,120]
[321183968,1711951859275,-500.0,0.00058356,120]
[321183969,1711951859284,-1000.0,0.0005838,90]
[321183970,1711951859294,-473.0,0.000584,38]
[321183971,1711951859304,-8878.0262118,0.0005848,2]
[321183972,1711951859314,-14418.6652717,0.0005848,2]
[321183973,1711951859328,-61184.4347137,0.0005848,2]
[321183974,1711951859338,-838.06132381,0.00058487,2]
[321183975,1711951859348,-294.38387176,0.00058487,4]
[321183976,1711951859358,-156.96,0.00058491,120]
[321183977,1711951859368,-250.0,0.000585,120]
[321183978,1711951859378,-151.0,0.00058521,120]
[321183979,1711951859388,-500.0,0.00058542,30]
[321183980,1711951859397,-500.0,0.00058542,120]
[321183981,1711951859408,-500.0,0.00058542,120]
[321183982,1711951859417,-500.0,0.00058542,120]
[321183983,1711951859428,-500.0,0.00058542,120]
[321183984,1711951859438,-500.0,0.00058542,120]
[321183985,1711951859448,-500.0,0.00058542,120]
[321183986,1711951859457,-317.69,0.00058542,120]
[321183987,1711951859467,-500.0,0.00058542,120]
[321183988,1711951859476,-500.0,0.00058542,120]
[321183989,1711951859486,-500.0,0.00058542,120]
[321183990,1711951859496,-500.0,0.00058542,120]
[321183991,1711951859505,-500.0,0.00058542,120]
[321183992,1711951859515,-500.0,0.00058542,120]
[321183993,1711951859524,-205.69416746,0.00058542,120]
[321183994,1711951859534,-500.0,0.00058547,120]
[321183995,1711951859543,-361.18390294,0.00058547,120]
[321183996,1711951859552,-500.0,0.00058547,120]
[321183997,1711951859562,-500.0,0.00058547,120]
[321183998,1711951859576,-1130.82,0.00058547,120]
[321183999,1711951859586,-500.0,0.00058547,120]
[321184000,1711951859596,-1178.0,0.00058568,120]
[321184001,1711951859606,-150.01,0.00058624,120]
[321184002,1711951859615,-2026.12619783,0.00058624,120]
[321184003,1711951859625,-388.08650752,0.00058625,4]
[321184004,1711951859635,-1265.93245522,0.00058625,4]
[321184005,1711951859644,-3376.27456214,0.00058625,4]
[321184006,1711951859654,-500.0,0.0005863,120]
[321184007,1711951859664,-623.7,0.0005863,120]
[321184008,1711951859673,-775.42,0.0005863,120]
[321184009,1711951859682,-768.77,0.0005863,120]
[321184010,1711951859692,-1125.53,0.0005863,120]
[321184011,1711951859702,-704.11,0.0005863,120]
[321184012,1711951859711,-3905.3,0.0005863,120]
[321184013,1711951859720,-1527.15,0.0005863,120]
[321184014,1711951859730,-500.0,0.0005863,120]
[321184015,1711951859739,-2316.33,0.0005863,120]
[321184016,1711951859748,-844.99,0.0005863,120]
[321184017,1711951859757,-500.0,0.0005863,120]
[321184018,1711951859766,-885.7,0.0005863,120]
[321184019,1711951859776,-500.0,0.0005863,120]
[321184020,1711951859785,-1295.33,0.0005863,120]
[321184021,1711951859794,-2937.94,0.0005863,120]
[321184022,1711951859803,-500.0,0.0005863,120]
[321184023,1711951859812,-1995.86,0.0005863,120]
[321184024,1711951859824,-598.43,0.0005863,120]
[321184025,1711951859834,-1598.44,0.0005863,120]
[321184026,1711951859844,-289.71664416,0.0005863,120]
[321184027,1711951859853,-1620.39,0.0005863,120]
[321184028,1711951859863,-1182.42,0.0005863,120]
[321184029,1711951859873,-500.0,0.0005863,120]
[321184030,1711951859882,-500.0,0.0005863,120]
[321184031,1711951859891,-1108.51,0.0005863,120]
[321184032,1711951859901,-2166.26,0.0005863,120]
[321184033,1711951859910,-500.0,0.0005863,120]
[321184034,1711951859920,-500.0,0.0005863,120]
[321184035,1711951859929,-760.91,0.0005863,120]
[321184036,1711951859940,-500.0,0.0005863,120]
[321184037,1711951859950,-1208.42,0.0005863,120]
[321184038,1711951859960,-500.0,0.0005863,120]
[321184039,1711951859970,-2832.74,0.0005863,120]
[321184040,1711951859979,-651.14,0.0005863,120]
[321184041,1711951859989,-734.88,0.0005863,120]
[321184042,1711951859999,-1257.16,0.0005863,120]
[321184043,1711951860009,-741.06,0.0005863,120]
[321184044,1711951860019,-1699.92,0.0005863,120]
[321184045,1711951860028,-1993.44,0.0005863,120]
[321184046,1711951860038,-500.0,0.0005863,120]
[321184047,1711951860048,-3642.1,0.0005863,120]
[321184048,1711951860058,-7257.52,0.0005863,120]
[321184049,1711951860069,-500.0,0.0005863,120]
[321184050,1711951860081,-902.57,0.0005863,21]
[321184051,1711951860089,-2173.88,0.0005863,120]
[321184052,1711951860099,-500.0,0.0005863,120]
[321184053,1711951860108,-2366.8624791,0.00058648,2]
[321184054,1711951860118,-589.5130284,0.00058648,2]
[321184055,1711951860128,-500.0,0.00058654,90]
[321184056,1711951860138,-150.12,0.00058666,120]
[321184057,1711951860147,-1459.0,0.00058688,25]
[321184058,1711951860157,-150.0,0.000587,13]
[321184059,1711951860166,-1000.0,0.00058752,120]
[321184060,1711951860176,-3192.67639528,0.00058797,4]
[321184061,1711951860185,-4990.995237,0.00058797,4]
[321184062,1711951860194,-155.46951148,0.00058797,4]
[321184063,1711951860204,-157.60204674,0.00058797,4]
[321184064,1711951860213,-512.40408146,0.00058816,30]
[321184065,1711951860223,-500.0,0.00058816,120]
[321184066,1711951860233,-500.0,0.00058816,120]
[321184067,1711951860242,-500.0,0.00058816,120]
[321184068,1711951860251,-220.4,0.00058816,120]
[321184069,1711951860261,-500.0,0.00058816,120]
[321184070,1711951860271,-500.0,0.00058816,120]
[321184071,1711951860280,-500.0,0.00058816,120]
[321184072,1711951860288,-500.0,0.00058816,120]
[321184073,1711951860298,-614.09,0.00058816,120]
[321184074,1711951860308,-500.0,0.00058816,120]
[321184075,1711951860317,-500.0,0.00058816,120]
[321184076,1711951860329,-500.0,0.0005882,120]
[321184077,1711951860339,-500.0,0.0005882,120]
[321184078,1711951860348,-283.1325563,0.0005882,120]
[321184079,1711951860357,-207.50181216,0.0005882,120]
[321184080,1711951860367,-500.0,0.00058821,120]
[321184081,1711951860377,-1130.82,0.00058821,120]
[321184082,1711951860387,-250.75,0.00058821,120]
[321184083,1711951860397,-200.683425,0.00058823,30]
[321184084,1711951860407,-150.0,0.00058888,14]
[321184085,1711951860417,-832.0,0.000589,20]
[321184086,1711951860429,-623.7,0.00058904,120]
[321184087,1711951860439,-500.0,0.00058904,120]
[321184088,1711951860448,-775.42,0.00058904,120]
[321184089,1711951860458,-768.77,0.00058904,120]
[321184090,1711951860468,-1125.53,0.00058904,120]
[321184091,1711951860476,-704.11,0.00058904,120]
[321184092,1711951860485,-3905.3,0.00058904,120]
[321184093,1711951860495,-1527.15,0.00058904,120]
[321184094,1711951860505,-500.0,0.00058904,120]
[321184095,1711951860515,-2316.33,0.00058904,120]
[321184096,1711951860525,-844.99,0.00058904,120]
[321184097,1711951860534,-500.0,0.00058904,120]
[321184098,1711951860543,-885.7,0.00058904,120]
[321184099,1711951860553,-500.0,0.00058904,120]
[321184100,1711951860562,-1295.33,0.00058904,120]
[321184101,1711951860575,-2937.94,0.00058904,120]
[321184102,1711951860584,-500.0,0.00058904,120]
[321184103,1711951860594,-1995.86,0.00058904,120]
[321184104,1711951860604,-598.43,0.00058904,120]
[321184105,1711951860614,-1598.44,0.00058904,120]
[321184106,1711951860624,-1620.39,0.00058904,120]
[321184107,1711951860633,-1182.42,0.00058904,120]
[321184108,1711951860643,-500.0,0.00058904,120]
[321184109,1711951860653,-500.0,0.00058904,120]
[321184110,1711951860663,-1108.51,0.00058904,120]
[321184111,1711951860674,-2166.26,0.00058904,120]
[321184112,1711951860685,-472.78,0.00058904,120]
[321184113,1711951860694,-500.0,0.00058904,120]
[321184114,1711951860704,-760.91,0.00058904,120]
[321184115,1711951860713,-500.0,0.00058904,120]
[321184116,1711951860723,-1208.42,0.00058904,120]
[321184117,1711951860732,-500.0,0.00058904,120]
[321184118,1711951860743,-2832.74,0.00058904,120]
[321184119,1711951860752,-651.14,0.00058904,120]
[321184120,1711951860761,-734.88,0.00058904,120]
[321184121,1711951860771,-1257.16,0.00058904,120]
[321184122,1711951860781,-741.06,0.00058904,120]
[321184123,1711951860791,-1699.92,0.00058904,120]
[321184124,1711951860800,-1993.44,0.00058904,120]
[321184125,1711951860809,-500.0,0.00058904,120]
[321184126,1711951860819,-3642.1,0.00058904,120]
[321184127,1711951860832,-7257.52,0.00058904,120]
[321184128,1711951860841,-500.0,0.00058904,120]
[321184129,1711951860851,-902.57,0.00058904,21]
[321184130,1711951860861,-2173.88,0.00058904,120]
[321184131,1711951860871,-500.0,0.00058904,120]
[321184132,1711951860880,-6138.7518683,0.00058922,7]
[321184133,1711951860890,-5067.0,0.00058946,3]
[321184134,1711951860899,-343.09,0.00058965,2]
[321184135,1711951860909,-153.517285,0.00058985,120]
[321184136,1711951860919,-151.0,0.00058985,7]
[321184137,1711951860928,-154.220694,0.00058985,120]
[321184138,1711951860938,-152.712935,0.00058985,120]
[321184139,1711951860948,-1000.0,0.00059,120]
[321184140,1711951860957,-20000.0,0.00059,120]
[321184141,1711951860967,-5000.0,0.00059,60]
[321184142,1711951860976,-1000.0,0.00059,120]
[321184143,1711951860985,-510.43251429,0.00059,120]
[321184144,1711951860995,-855.77232674,0.00059,120]
[321184145,1711951861005,-260.0,0.00059,120]
[321184146,1711951861015,-275.78,0.00059009,2]
[321184147,1711951861025,-42884.5310984,0.0005901,120]
[321184148,1711951861034,-151.0,0.0005901,60]
[321184149,1711951861043,-1000.0,0.00059056,120]
[321184150,1711951861053,-150.0,0.0005908,14]
[321184151,1711951861062,-568.20777816,0.0005909,2]
[321184152,1711951861074,-500.0,0.0005909,120]
[321184153,1711951861084,-500.0,0.0005909,120]
[321184154,1711951861094,-500.0,0.0005909,120]
[321184155,1711951861104,-500.0,0.0005909,120]
[321184156,1711951861113,-500.0,0.0005909,120]
[321184157,1711951861122,-465.44,0.0005909,120]
[321184158,1711951861132,-500.0,0.0005909,120]
[321184159,1711951861142,-372.34,0.0005909,120]
[321184160,1711951861152,-381.18284595,0.0005909,120]
[321184161,1711951861161,-479.17793887,0.00059094,120]
[321184162,1711951861171,-151.0,0.00059094,120]
[321184163,1711951861180,-500.0,0.00059095,120]
[321184164,1711951861189,-1130.82,0.00059095,120]
[321184165,1711951861199,-151.0,0.00059178,120]
[321184166,1711951861208,-199.924081,0.00059178,120]
[321184167,1711951861218,-623.7,0.00059178,120]
[321184168,1711951861227,-626.11,0.00059178,120]
[321184169,1711951861236,-775.42,0.00059178,120]
[321184170,1711951861246,-768.77,0.00059178,120]
[321184171,1711951861255,-1125.53,0.00059178,120]
[321184172,1711951861264,-704.11,0.00059178,120]
[321184173,1711951861274,-3905.3,0.00059178,120]
[321184174,1711951861283,-1527.15,0.00059178,120]
[321184175,1711951861293,-500.0,0.00059178,120]
[321184176,1711951861302,-2316.33,0.00059178,120]
[321184177,1711951861420,-844.99,0.00059178,120]
[321184178,1711951861431,-500.0,0.00059178,120]
[321184179,1711951861441,-885.7,0.00059178,120]
[321184180,1711951861450,-500.0,0.00059178,120]
[321184181,1711951861461,-1295.33,0.00059178,120]
[321184182,1711951861470,-2937.94,0.00059178,120]
[321184183,1711951861480,-500.0,0.00059178,120]
[321184184,1711951861490,-1995.86,0.00059178,120]
[321184185,1711951861500,-598.43,0.00059178,120]
[321184186,1711951861510,-1598.44,0.00059178,120]
[321184187,1711951861520,-1620.39,0.00059178,120]
[321184188,1711951861530,-1182.42,0.00059178,120]
[321184189,1711951861540,-500.0,0.00059178,120]
[321184190,1711951861549,-500.0,0.00059178,120]
[321184191,1711951861559,-1108.51,0.00059178,120]
[321184192,1711951861568,-151.0,0.00059178,120]
[321184193,1711951861581,-2166.26,0.00059178,120]
[321184194,1711951861591,-500.0,0.00059178,120]
[321184195,1711951861600,-760.91,0.00059178,120]
[321184196,1711951861611,-500.0,0.00059178,120]
[321184197,1711951861621,-1208.42,0.00059178,120]
[321184198,1711951861630,-617.23113435,0.00059178,120]
[321184199,1711951861640,-2832.74,0.00059178,120]
[321184200,1711951861649,-651.14,0.00059178,120]
[321184201,1711951861659,-734.88,0.00059178,120]
[321184202,1711951861669,-1257.16,0.00059178,120]
[321184203,1711951861679,-741.06,0.00059178,120]
[321184204,1711951861689,-1699.92,0.00059178,120]
[321184205,1711951861699,-278.849216,0.00059178,120]
[321184206,1711951861708,-151.0,0.00059178,120]
[321184207,1711951861718,-1993.44,0.00059178,120]
[321184208,1711951861728,-278.849216,0.00059178,120]
[321184209,1711951861737,-500.0,0.00059178,120]
[321184210,1711951861747,-3642.1,0.00059178,120]
[321184211,1711951861757,-7257.52,0.00059178,120]
[321184212,1711951861766,-500.0,0.00059178,120]
[321184213,1711951861776,-902.57,0.00059178,21]
[321184214,1711951861786,-151.0,0.00059178,120]
[321184215,1711951861795,-2173.88,0.00059178,120]
[321184216,1711951861805,-285.17,0.00059178,120]
[321184217,1711951861814,-150.0,0.000592,13]
[321184218,1711951861827,-500.0,0.00059202,90]
[321184219,1711951861836,-4876.80276876,0.00059212,2]
[321184220,1711951861850,-2663.61287479,0.00059212,2]
[321184221,1711951861859,-292.85462651,0.00059263,30]
[321184222,1711951861869,-150.0,0.00059313,14]
[321184223,1711951861879,-1000.0,0.00059361,120]
[321184224,1711951861889,-500.0,0.00059364,120]
[321184225,1711951861898,-500.0,0.00059364,120]
[321184226,1711951861908,-500.0,0.00059364,120]
[321184227,1711951861918,-500.0,0.00059364,120]
[321184228,1711951861927,-202.64861986,0.00059364,120]
[321184229,1711951861937,-500.0,0.00059364,120]
[321184230,1711951861947,-500.0,0.00059369,120]
[321184231,1711951861956,-1130.82,0.00059369,120]
[321184232,1711951861966,-830.61241619,0.00059369,120]
[321184233,1711951861976,-150.0,0.00059433,14]
[321184234,1711951861986,-150.0,0.00059442,14]
[321184235,1711951861995,-623.7,0.00059452,120]
[321184236,1711951862004,-775.42,0.00059452,120]
[321184237,1711951862015,-768.77,0.00059452,120]
[321184238,1711951862024,-1125.53,0.00059452,120]
[321184239,1711951862034,-704.11,0.00059452,120]
[321184240,1711951862043,-3905.3,0.00059452,120]
[321184241,1711951862053,-1527.15,0.00059452,120]
[321184242,1711951862062,-500.0,0.00059452,120]
[321184243,1711951862072,-2316.33,0.00059452,120]
[321184244,1711951862085,-844.99,0.00059452,120]
[321184245,1711951862095,-500.0,0.00059452,120]
[321184246,1711951862104,-885.7,0.00059452,120]
[321184247,1711951862114,-500.0,0.00059452,120]
[321184248,1711951862123,-1295.33,0.00059452,120]
[321184249,1711951862133,-2937.94,0.00059452,120]
[321184250,1711951862142,-500.0,0.00059452,120]
[321184251,1711951862151,-1995.86,0.00059452,120]
[321184252,1711951862161,-598.43,0.00059452,120]
[321184253,1711951862171,-1598.44,0.00059452,120]
[321184254,1711951862182,-1620.39,0.00059452,120]
[321184255,1711951862191,-1182.42,0.00059452,120]
[321184256,1711951862200,-500.0,0.00059452,120]
[321184257,1711951862210,-500.0,0.00059452,120]
[321184258,1711951862219,-1108.51,0.00059452,120]
[321184259,1711951862229,-2166.26,0.00059452,120]
[321184260,1711951862239,-500.0,0.00059452,120]
[321184261,1711951862248,-760.91,0.00059452,120]
[321184262,1711951862258,-500.0,0.00059452,120]
[321184263,1711951862267,-1208.42,0.00059452,120]
[321184264,1711951862278,-2832.74,0.00059452,120]
[321184265,1711951862288,-651.14,0.00059452,120]
[321184266,1711951862298,-734.88,0.00059452,120]
[321184267,1711951862307,-1257.16,0.00059452,120]
[321184268,1711951862317,-741.06,0.00059452,120]
[321184269,1711951862329,-1699.92,0.00059452,120]
[321184270,1711951862340,-1993.44,0.00059452,120]
[321184271,1711951862350,-509.82141911,0.00059452,120]
[321184272,1711951862360,-3642.1,0.00059452,120]
[321184273,1711951862370,-7257.52,0.00059452,120]
[321184274,1711951862380,-246.29,0.00059452,120]
[321184275,1711951862390,-902.57,0.00059452,21]
[321184276,1711951862400,-2173.88,0.00059452,120]
[321184277,1711951862411,-300.080216,0.00059498,118]
[321184278,1711951862421,-529.0,0.000595,60]
[321184279,1711951862433,-1000.0,0.00059531,120]
[321184280,1711951862443,-150.0,0.00059561,14]
[321184281,1711951862452,-150.0,0.00059571,14]
[321184282,1711951862462,-500.0,0.00059638,120]
[321184283,1711951862471,-500.0,0.00059638,120]
[321184284,1711951862480,-500.0,0.00059638,120]
[321184285,1711951862490,-500.0,0.00059638,120]
[321184286,1711951862502,-500.0,0.00059638,120]
[321184287,1711951862512,-641.17558952,0.00059643,120]
[321184288,1711951862522,-1130.82,0.00059643,120]
[321184289,1711951862532,-1000.0,0.00059665,120]
[321184290,1711951862541,-265.04988501,0.00059682,14]
[321184291,1711951862550,-150.0,0.000597,13]
[321184292,1711951862560,-623.7,0.00059726,120]
[321184293,1711951862570,-775.42,0.00059726,120]
[321184294,1711951862586,-768.77,0.00059726,120]
[321184295,1711951862595,-1125.53,0.00059726,120]
[321184296,1711951862605,-704.11,0.00059726,120]
[321184297,1711951862614,-3905.3,0.00059726,120]
[321184298,1711951862624,-1527.15,0.00059726,120]
[321184299,1711951862633,-500.0,0.00059726,120]
[321184300,1711951862642,-2316.33,0.00059726,120]
[321184301,1711951862651,-844.99,0.00059726,120]
[321184302,1711951862660,-500.0,0.00059726,120]
[321184303,1711951862670,-885.7,0.00059726,120]
[321184304,1711951862680,-500.0,0.00059726,120]
[321184305,1711951862690,-1295.33,0.00059726,120]
[321184306,1711951862700,-2937.94,0.00059726,120]
[321184307,1711951862710,-166.85,0.00059726,120]
[321184308,1711951862720,-1995.86,0.00059726,120]
[321184309,1711951862730,-598.43,0.00059726,120]
[321184310,1711951862740,-1598.44,0.00059726,120]
[321184311,1711951862750,-1620.39,0.00059726,120]
[321184312,1711951862759,-1182.42,0.00059726,120]
[321184313,1711951862768,-487.41,0.00059726,120]
[321184314,1711951862778,-500.0,0.00059726,120]
[321184315,1711951862787,-1108.51,0.00059726,120]
[321184316,1711951862797,-2166.26,0.00059726,120]
[321184317,1711951862808,-500.0,0.00059726,120]
[321184318,1711951862817,-760.91,0.00059726,120]
[321184319,1711951862831,-500.0,0.00059726,120]
[321184320,1711951862840,-1208.42,0.00059726,120]
[321184321,1711951862850,-2832.74,0.00059726,120]
[321184322,1711951862861,-651.14,0.00059726,120]
[321184323,1711951862872,-734.88,0.00059726,120]
[321184324,1711951862882,-1257.16,0.00059726,120]
[321184325,1711951862892,-741.06,0.00059726,120]
[321184326,1711951862903,-1699.92,0.00059726,120]
[321184327,1711951862914,-1993.44,0.00059726,120]
[321184328,1711951862925,-3642.1,0.00059726,120]
[321184329,1711951862934,-3000.0,0.00059726,120]
[321184330,1711951862945,-7257.52,0.00059726,120]
[321184331,1711951862955,-902.57,0.00059726,21]
[321184332,1711951862965,-2173.88,0.00059726,120]
[321184333,1711951862975,-500.0,0.0005975,90]
[321184334,1711951862986,-500.0,0.0005975,90]
[321184335,1711951862996,-500.0,0.0005975,90]
[321184336,1711951863006,-1600.0,0.0005975,90]
[321184337,1711951863015,-152.0,0.0005977,4]
[321184338,1711951863025,-302.31439135,0.00059798,120]
[321184339,1711951863035,-3661.02582555,0.000598,120]
[321184340,1711951863045,-1170.474877,0.0005984,30]
[321184341,1711951863055,-1000.0,0.0005986,30]
[321184342,1711951863065,-255.5,0.0005987,15]
[321184343,1711951863075,-150.5,0.0005988,15]
[321184344,1711951863089,-1000.0,0.0005988,30]
[321184345,1711951863099,-150.5,0.0005989,15]
[321184346,1711951863109,-84254.12087392,0.000599,10]
[321184347,1711951863118,-158.0,0.000599,2]
[321184348,1711951863127,-134112.15003485,0.000599,26]
[321184349,1711951863146,-80869.26278725,0.000599,26]
[321184350,1711951863156,-150.0,0.000599,40]
[321184351,1711951863166,-150.0,0.000599,120]
[321184352,1711951863176,-151.0,0.000599,60]
[321184353,1711951863186,-150.0,0.000599,40]
[321184354,1711951863196,-1899.082097,0.000599,30]
[321184355,1711951863205,-1000.0,0.000599,30]
[321184356,1711951863215,-500.0,0.00059912,120]
[321184357,1711951863225,-500.0,0.00059912,120]
[321184358,1711951863234,-500.0,0.00059912,120]
[321184359,1711951863243,-500.0,0.00059912,120]
[321184360,1711951863252,-500.0,0.00059912,120]
[321184361,1711951863261,-622.82099624,0.00059913,4]